fUST/lending_fUST_20250521
["ID","MTS","AMOUNT","RATE_DAILY","PERIOD"]
[361754584,1747761041301,-450.0,0.00016438,2]
[361754585,1747761041311,-213.4971541,0.00016438,2]
[361754586,1747761041320,-450.0,0.00016438,2]
[361754587,1747761041330,-250.0,0.00016438,2]
[361754588,1747761041339,-450.0,0.00016438,2]
[361754589,1747761041348,-450.0,0.00016438,2]
[361754590,1747761041361,-350.0,0.00016438,2]
[361754591,1747761041374,-450.0,0.00016438,2]
[361754592,1747761041383,-450.0,0.00016438,2]
[361754593,1747761041398,-450.0,0.00016438,2]
[361754594,1747761041408,-450.0,0.00016438,2]
[361754595,1747761041417,-450.0,0.00016438,2]
[361754596,1747761041427,-450.0,0.00016438,2]
[361754597,1747761041437,-450.0,0.00016438,2]
[361754598,1747761041447,-254.82009647,0.00016438,2]
[361754599,1747761041456,-450.0,0.00016438,2]
[361754600,1747761041466,-450.0,0.00016438,2]
[361754601,1747761041475,-450.0,0.00016438,2]
[361754602,1747761041486,-450.0,0.00016438,2]
[361754603,1747761041495,-211.58649638,0.00016438,2]
[361754604,1747761041507,-450.0,0.00016438,2]
[361754605,1747761041516,-450.0,0.00016438,2]
[361754606,1747761041528,-450.0,0.00016438,2]
[361754607,1747761041538,-450.0,0.00016438,2]
[361754608,1747761041547,-450.0,0.00016438,2]
[361754609,1747761041557,-450.0,0.00016438,2]
[361754610,1747761041567,-450.0,0.00016438,2]
[361754611,1747761041576,-300.0,0.00016438,2]
[361754612,1747761041585,-450.0,0.00016438,2]
[361754613,1747761041595,-450.0,0.00016438,2]
[361754614,1747761041605,-350.0,0.00016438,2]
[361754615,1747761041614,-450.0,0.00016438,2]
[361754616,1747761041624,-450.0,0.00016438,2]
[361754617,1747761041633,-350.0,0.00016438,2]
[361754618,1747761041642,-450.0,0.00016438,2]
[361754619,1747761041651,-350.0,0.00016438,2]
[361754620,1747761041660,-430.0,0.00016438,2]
[361754621,1747761041669,-450.0,0.00016438,2]
[361754622,1747761041678,-450.0,0.00016438,2]
[361754623,1747761041689,-350.0,0.00016438,2]
[361754624,1747761041699,-350.0,0.00016438,2]
[361754625,1747761041707,-350.0,0.00016438,2]
[361754626,1747761041717,-350.0,0.00016438,2]
[361754627,1747761041726,-350.0,0.00016438,2]
[361754628,1747761041735,-450.0,0.00016438,2]
[361754629,1747761041744,-450.0,0.00016438,2]
[361754630,1747761041753,-438.15,0.00016438,2]
[361754631,1747761041763,-350.0,0.00016438,2]
[361754632,1747761041774,-450.0,0.00016438,2]
[361754633,1747761041784,-350.0,0.00016438,2]
[361754634,1747761041793,-450.0,0.00016438,2]
[361754635,1747761041802,-450.0,0.00016438,2]
[361754636,1747761041812,-350.0,0.00016438,2]
[361754637,1747761041821,-450.2837575,0.00016438,2]
[361754638,1747761041830,-430.0,0.00016438,2]
[361754639,1747761041839,-450.0,0.00016438,2]
[361754640,1747761041848,-450.0,0.00016438,2]
[361754641,1747761041858,-249.47891798,0.00016438,2]
[361754642,1747761042041,-430.0,0.00016438,2]
[361754643,1747761042051,-350.0,0.00016438,2]
[361754644,1747761042062,-430.0,0.00016438,2]
[361754645,1747761042072,-350.0,0.00016438,2]
[361754646,1747761042082,-430.0,0.00016438,2]
[361754647,1747761042092,-450.0,0.00016438,2]
[361754648,1747761042101,-450.0,0.00016438,2]
[361754649,1747761042111,-430.0,0.00016438,2]
[361754650,1747761042120,-450.0,0.00016438,2]
[361754651,1747761042130,-254.38576183,0.00016438,2]
[361754652,1747761042139,-450.0,0.00016438,2]
[361754653,1747761042149,-450.0,0.00016438,2]
[361754654,1747761042158,-450.0,0.00016438,2]
[361754655,1747761042167,-450.0,0.00016438,2]
[361754656,1747761042176,-450.0,0.00016438,2]
[361754657,1747761042186,-350.0,0.00016438,2]
[361754658,1747761042196,-450.0,0.00016438,2]
[361754659,1747761042205,-450.0,0.00016438,2]
[361754660,1747761042215,-450.0,0.00016438,2]
[361754661,1747761042224,-450.0,0.00016438,2]
[361754662,1747761042233,-450.0,0.00016438,2]
[361754663,1747761042243,-450.0,0.00016438,2]
[361754664,1747761042252,-350.0,0.00016438,2]
[361754665,1747761042262,-450.0,0.00016438,2]
[361754666,1747761042274,-450.0,0.00016438,2]
[361754667,1747761042283,-430.0,0.00016438,2]
[361754668,1747761042293,-450.0,0.00016438,2]
[361754669,1747761042302,-500.0,0.00016438,2]
[361754670,1747761042312,-500.0,0.00016472,2]
[361754671,1747761042321,-24900.0,0.00016473,2]
[361754672,1747761042331,-1134.34732612,0.00016573,2]
[361754673,1747761042340,-152.0,0.00016599,2]
[361754674,1747761042350,-500.0,0.00016711,2]
[361754675,1747761042359,-430.0,0.00016712,2]
[361754676,1747761042369,-438.15,0.00016712,2]
[361754677,1747761042378,-430.0,0.00016712,2]
[361754678,1747761042388,-430.0,0.00016712,2]
[361754679,1747761042397,-430.0,0.00016712,2]
[361754680,1747761042408,-430.0,0.00016986,2]
[361754681,1747761042418,-438.15,0.00016986,2]
[361754682,1747761042427,-430.0,0.00016986,2]
[361754683,1747761042437,-430.0,0.00016986,2]
[361754684,1747761042447,-430.0,0.00016986,2]
[361754685,1747761042456,-160.0,0.00017259,2]
[361754686,1747761042466,-430.0,0.0001726,2]
[361754687,1747761042475,-438.15,0.0001726,2]
[361754688,1747761042486,-430.0,0.0001726,2]
[361754689,1747761042495,-430.0,0.0001726,2]
[361754690,1747761042505,-430.0,0.0001726,2]
[361754691,1747761042514,-430.0,0.00017534,2]
[361754692,1747761042526,-438.15,0.00017534,2]
[361754693,1747761042535,-430.0,0.00017534,2]
[361754694,1747761042545,-430.0,0.00017534,2]
[361754695,1747761042554,-430.0,0.00017534,2]
[361754696,1747761042564,-251.27354894,0.00017578,2]
[361754697,1747761042574,-500.0,0.0001759,2]
[361754698,1747761042584,-12628.16934141,0.00017633,2]
[361754699,1747761042594,-430.0,0.00017808,2]
[361754700,1747761042603,-438.15,0.00017808,2]
[361754701,1747761042613,-430.0,0.00017808,2]
[361754703,1747761042623,-430.0,0.00017808,2]
[361754705,1747761042633,-430.0,0.00017808,2]
[361754706,1747761042642,-788.20026824,0.000179,2]
[361754707,1747761042651,-1134.3473261,0.00017905,2]
[361754708,1747761042661,-420.0,0.00017962,2]
[361754709,1747761042671,-286.0,0.00017962,2]
[361754710,1747761042681,-420.0,0.00017963,2]
[361754711,1747761042691,-1247.0,0.00018052,2]
[361754712,1747761042700,-430.0,0.00018082,2]
[361754713,1747761042710,-438.15,0.00018082,2]
[361754714,1747761042721,-430.0,0.00018082,2]
[361754715,1747761042730,-430.0,0.00018082,2]
[361754717,1747761042740,-430.0,0.00018082,2]
[361754719,1747761042749,-788.20026824,0.00018176,2]
[361754720,1747761042759,-379.04,0.00018346,3]
[361754721,1747761042769,-495.38,0.00018355,2]
[361754723,1747761042779,-430.0,0.00018356,2]
[361754724,1747761042788,-438.15,0.00018356,2]
[361754726,1747761042798,-430.0,0.00018356,2]
[361754728,1747761042807,-430.0,0.00018356,2]
[361754730,1747761042817,-154.83928357,0.00018356,2]
[361754732,1747761042827,-788.20026824,0.00018452,2]
[361754734,1747761042836,-430.0,0.0001863,2]
[361754736,1747761042846,-438.15,0.0001863,2]
[361754737,1747761042855,-430.0,0.0001863,2]
[361754738,1747761042865,-430.0,0.0001863,2]
[361754739,1747761042874,-788.20026824,0.00018728,2]
[361754741,1747761042884,-251.27354894,0.00018818,2]
[361754743,1747761042894,-430.0,0.00018904,2]
[361754744,1747761042904,-438.15,0.00018904,2]
[361754745,1747761042913,-430.0,0.00018904,2]
[361754746,1747761042922,-293.01287752,0.00018904,2]
[361754747,1747761042932,-788.20026824,0.00019003,2]
[361754748,1747761042942,-430.0,0.00019178,2]
[361754749,1747761042951,-438.15,0.00019178,2]
[361754750,1747761042961,-430.0,0.00019178,2]
[361754751,1747761042971,-286.92961747,0.00019178,2]
[361754752,1747761042980,-338.681967,0.00019178,2]
[361754753,1747761042989,-160.0,0.00019192,2]
[361754754,1747761042999,-160.0,0.00019192,2]
[361754755,1747761043008,-422.65292303,0.00019192,2]
[361754756,1747761043019,-1134.3473261,0.00019237,2]
[361754757,1747761043028,-788.20026824,0.00019279,2]
[361754758,1747761043037,-430.0,0.00019452,2]
[361754759,1747761043047,-438.15,0.00019452,2]
[361754760,1747761043058,-206.80012233,0.00019452,2]
[361754761,1747761043069,-788.20026824,0.00019555,2]
[361754762,1747761043079,-587.0,0.0001963,2]
[361754763,1747761043088,-587.0,0.00019631,2]
[361754764,1747761043098,-430.0,0.00019726,2]
[361754765,1747761043107,-438.15,0.00019726,2]
[361754766,1747761043117,-788.20026824,0.00019831,2]
[361754767,1747761043127,-430.0,0.0002,2]
[361754768,1747761043136,-438.15,0.0002,2]
[361754769,1747761043146,-48637.01124328,0.0002,2]
[361754770,1747761043156,-251.27354894,0.00020058,2]
[361754771,1747761043166,-788.20026824,0.00020107,2]
[361754772,1747761043176,-236.404791,0.00020187,2]
[361754773,1747761043186,-384.38,0.00020273,2]
[361754774,1747761043196,-438.15,0.00020273,2]
[361754775,1747761043206,-788.20026824,0.00020383,3]
[361754776,1747761043216,-1300.0,0.00020445,2]
[361754777,1747761043226,-438.15,0.00020547,2]
[361754778,1747761043236,-1134.3473261,0.00020568,2]
[361754779,1747761043246,-414.21,0.00020578,2]
[361754780,1747761043255,-788.20026824,0.00020659,3]
[361754781,1747761043266,-438.15,0.00020821,2]
[361754782,1747761043276,-788.20026824,0.00020934,4]
[361754783,1747761043286,-3000.0,0.00021,2]
[361754784,1747761043295,-3000.0,0.0002101,2]
[361754785,1747761043305,-3000.0,0.0002102,2]
[361754786,1747761043315,-3000.0,0.0002103,2]
[361754787,1747761043324,-3000.0,0.0002104,2]
[361754788,1747761043334,-3000.0,0.0002105,2]
[361754789,1747761043344,-3000.0,0.0002106,2]
[361754790,1747761043353,-3000.0,0.0002107,2]
[361754791,1747761043363,-3000.0,0.0002108,2]
[361754792,1747761043372,-3000.0,0.0002109,2]
[361754793,1747761043382,-438.15,0.00021095,2]
[361754794,1747761043393,-3000.0,0.000211,2]
[361754795,1747761043404,-500.0,0.00021109,2]
[361754796,1747761043413,-500.0,0.00021109,2]
[361754797,1747761043423,-487.37264468,0.00021109,2]
[361754798,1747761043434,-500.0,0.00021109,2]
[361754799,1747761043444,-500.0,0.00021109,2]
[361754800,1747761043454,-300.0,0.00021109,2]
[361754801,1747761043464,-3000.0,0.0002111,2]
[361754802,1747761043475,-3000.0,0.0002112,2]
[361754803,1747761043484,-3000.0,0.0002113,2]
[361754804,1747761043494,-3000.0,0.0002114,2]
[361754805,1747761043504,-151.0,0.0002114,2]
[361754806,1747761043514,-540.31125983,0.0002115,2]
[361754807,1747761043560,-1093.24667025,0.0002115,2]
[361754898,1747761046344,-212.38718278,0.00017633,2]
[361754900,1747761046354,-1000.0,0.00019,2]
[361754902,1747761046364,-160.0,0.00019188,2]
[361754904,1747761046374,-1000.0,0.000195,2]
[361754906,1747761046383,-500.0,0.00019999,2]
[361754908,1747761046392,-500.0,0.00019999,2]
[361754910,1747761046402,-367.12608993,0.00019999,2]
[361754912,1747761046414,-500.0,0.00019999,2]
[361754914,1747761046423,-561.02293068,0.00019999,2]
[361754916,1747761046432,-1000.0,0.0002,2]
[361754918,1747761046442,-1000.0,0.000205,2]
[361754920,1747761046452,-1000.0,0.00021,2]
[361754922,1747761046462,-2243.80581592,0.0002115,2]
[361754923,1747761046472,-151.0,0.0002115,2]
[361754925,1747761046483,-151.0,0.0002115,2]
[361754927,1747761046494,-151.0,0.0002115,2]
[361754929,1747761046503,-151.0,0.0002115,2]
[361754931,1747761046513,-151.0,0.0002115,2]
[361754932,1747761046523,-151.0,0.0002115,2]
[361754934,1747761046533,-151.0,0.0002115,2]
[361754936,1747761046542,-151.0,0.0002115,2]
[361754938,1747761046552,-571.58,0.000212,14]
[361754940,1747761046562,-3145.3,0.000212,14]
[361754942,1747761046571,-3145.3,0.000212,14]
[361754944,1747761046581,-3145.3,0.000212,14]
[361754946,1747761046591,-3145.3,0.000212,14]
[361754947,1747761046600,-296.964293,0.0002121,2]
[361754949,1747761046609,-296.964293,0.0002121,2]
[361754951,1747761046620,-152.575093,0.0002121,2]
[361754953,1747761046629,-170.75641,0.0002121,2]
[361754955,1747761046638,-205.448786,0.0002121,2]
[361754956,1747761046647,-170.75641,0.0002121,2]
[361754958,1747761046657,-205.448786,0.0002121,2]
[361754960,1747761046667,-125.96390969,0.0002121,2]
[361754963,1747761046679,-25.03609031,0.0002121,2]
[361754964,1747761046689,-151.0,0.0002121,2]
[361754966,1747761046698,-788.20026824,0.0002121,4]
[361754968,1747761046708,-251.27354894,0.00021297,2]
[361754970,1747761046717,-438.15,0.00021369,2]
[361754972,1747761046727,-823.0,0.00021452,2]
[361754974,1747761046737,-823.0,0.00021454,2]
[361754976,1747761046746,-788.20026824,0.00021486,5]
[361754978,1747761046756,-2121.43974371,0.000215,2]
[361754980,1747761046769,-231.56025629,0.000215,2]
[361754982,1747761046779,-1300.0,0.00021541,2]
[361754984,1747761046791,-636.0,0.000216,2]
[361754986,1747761046804,-12500.0,0.00021643,2]
[361754988,1747761046819,-151.0,0.00021643,2]
[361754990,1747761046831,-151.0,0.00021643,2]
[361754992,1747761046842,-151.0,0.00021643,2]
[361754994,1747761046853,-226.069568,0.00021643,2]
[361754996,1747761046864,-226.069568,0.00021643,2]
[361754998,1747761046876,-151.0,0.00021643,2]
[361755000,1747761046886,-151.0,0.00021643,2]
[361755002,1747761046895,-151.0,0.00021643,2]
[361755004,1747761046905,-151.0,0.00021643,2]
[361755006,1747761046914,-46.27649851,0.00021643,2]
[361755008,1747761047010,-104.72350149,0.00021643,2]
[361755009,1747761047019,-151.0,0.00021643,2]
[361755010,1747761047033,-151.0,0.00021643,2]
[361755011,1747761047043,-151.0,0.00021643,2]
[361755012,1747761047052,-151.0,0.00021643,2]
[361755013,1747761047062,-197.754417,0.00021643,2]
[361755014,1747761047071,-165.01221481,0.00021643,2]
[361755467,1747761167708,80697.96668614,0.0002734,120]
[361755468,1747761239123,-154.7466949,0.00013562,2]
[361755469,1747761270892,-145.2533051,0.00013562,2]
[361755470,1747761373939,25800.0,0.00019,30]
[361755471,1747761511315,1000.0,0.0002,120]
[361755485,1747762220039,-165.33881666,0.00013699,2]
[361755549,1747762232241,-47.42549434,0.00013699,2]
[361755551,1747762232251,-831.92208614,0.00014948,2]
[361755553,1747762232262,-662.10251196,0.00014948,2]
[361755555,1747762232271,-265.0,0.00015199,2]
[361755556,1747762232280,-300.0,0.00015313,2]
[361755557,1747762232290,-300.0,0.00015313,2]
[361755558,1747762232299,-1200.0,0.00015313,2]
[361755559,1747762232309,-24900.0,0.00015314,2]
[361755560,1747762232319,-526.04846149,0.00015349,2]
[361755561,1747762232328,-990.43972547,0.00015705,2]
[361755562,1747762232339,-150.76412938,0.00015926,2]
[361755563,1747762232350,-5000.0,0.00016026,2]
[361755564,1747762232363,-500.0,0.00016157,2]
[361755565,1747762232376,-1928.93896493,0.00016338,2]
[361755566,1747762232389,-152.0,0.00016399,2]
[361755567,1747762232402,-1008.52,0.00016425,3]
[361755568,1747762232415,-504.26,0.00016425,3]
[361755569,1747762232429,-252.13,0.00016425,3]
[361755570,1747762232439,-500.0,0.00016434,2]
[361755571,1747762232450,-500.0,0.00016434,2]
[361755572,1747762232460,-500.0,0.00016434,2]
[361755573,1747762232473,-500.0,0.00016434,2]
[361755574,1747762232485,-501.81997759,0.00016434,2]
[361755575,1747762232498,-500.0,0.00016434,2]
[361755576,1747762232511,-500.0,0.00016434,2]
[361755577,1747762232524,-500.0,0.00016434,2]
[361755578,1747762232536,-500.0,0.00016434,2]
[361755579,1747762232548,-500.0,0.00016434,2]
[361755580,1747762232560,-500.0,0.00016434,2]
[361755581,1747762232572,-500.0,0.00016434,2]
[361755582,1747762232584,-500.0,0.00016434,2]
[361755583,1747762232596,-500.0,0.00016434,2]
[361755584,1747762232610,-392.16452115,0.00016434,2]
[361755585,1747762232625,-107.83547885,0.00016434,2]
[361755586,1747762232638,-500.0,0.00016434,2]
[361755587,1747762232649,-500.0,0.00016434,2]
[361755588,1747762232661,-500.0,0.00016434,2]
[361755589,1747762232672,-500.0,0.00016434,2]
[361755590,1747762232683,-400.4021285,0.00016434,2]
[361755591,1747762232732,-99.5978715,0.00016434,2]
[361755592,1747762232743,-500.0,0.00016434,2]
[361755593,1747762232755,-500.0,0.00016434,2]
[361755594,1747762232767,-500.0,0.00016434,2]
[361755595,1747762232779,-500.0,0.00016434,2]
[361755596,1747762232790,-500.0,0.00016434,2]
[361755597,1747762232806,-500.0,0.00016434,2]
[361755598,1747762232820,-500.0,0.00016434,2]
[361755599,1747762232830,-500.0,0.00016434,2]
[361755600,1747762232841,-349.48650357,0.00016434,2]
[361755601,1747762232851,-601.37674119,0.00016434,2]
[361755602,1747762232862,-500.0,0.00016434,2]
[361755603,1747762232873,-500.0,0.00016434,2]
[361755604,1747762232885,-265.53221726,0.00016434,2]
[361755605,1747762232896,-500.0,0.00016434,2]
[361755606,1747762232908,-500.0,0.00016434,2]
[361755607,1747762232921,-500.0,0.00016434,2]
[361755608,1747762232932,-500.0,0.00016434,2]
[361755609,1747762232944,-500.0,0.00016434,2]
[361755610,1747762232957,-246.08451025,0.00016434,2]
[361755611,1747762232973,-253.91548975,0.00016434,2]
[361755612,1747762232984,-454.87867051,0.00016434,2]
[361755613,1747762232997,-500.0,0.00016434,2]
[361755614,1747762233009,-500.0,0.00016434,2]
[361755615,1747762233021,-500.0,0.00016434,2]
[361755616,1747762233033,-500.0,0.00016434,2]
[361755617,1747762233046,-500.0,0.00016434,2]
[361755618,1747762233058,-500.0,0.00016434,2]
[361755619,1747762233070,-500.0,0.00016434,2]
[361755620,1747762233081,-500.0,0.00016434,2]
[361755621,1747762233091,-500.0,0.00016434,2]
[361755622,1747762233102,-500.0,0.00016434,2]
[361755623,1747762233112,-500.0,0.00016434,2]
[361755624,1747762233122,-500.0,0.00016434,2]
[361755625,1747762233133,-500.0,0.00016434,2]
[361755626,1747762233143,-500.0,0.00016434,2]
[361755627,1747762233154,-500.0,0.00016434,2]
[361755628,1747762233168,-484.74052177,0.00016434,2]
[361755629,1747762233179,-500.0,0.00016434,2]
[361755630,1747762233192,-500.0,0.00016434,2]
[361755631,1747762233203,-219188.3512872,0.00016435,2]
[361755632,1747762233214,-116718.89443496,0.00016438,2]
[361755633,1747762233224,-450.0,0.00016438,2]
[361755634,1747762233235,-450.0,0.00016438,2]
[361755635,1747762233246,-450.0,0.00016438,2]
[361755636,1747762233257,-450.0,0.00016438,2]
[361755637,1747762233269,-450.0,0.00016438,2]
[361755638,1747762233278,-450.0,0.00016438,2]
[361755639,1747762233289,-450.0,0.00016438,2]
[361755640,1747762233301,-506.8109206,0.00016438,2]
[361755641,1747762233314,-450.0,0.00016438,2]
[361755642,1747762233325,-450.0,0.00016438,2]
[361755643,1747762233336,-450.0,0.00016438,2]
[361755644,1747762233348,-450.0,0.00016438,2]
[361755645,1747762233358,-450.0,0.00016438,2]
[361755646,1747762233369,-450.0,0.00016438,2]
[361755647,1747762233379,-450.0,0.00016438,2]
[361755648,1747762233391,-450.0,0.00016438,2]
[361755649,1747762233401,-329.68418226,0.00016438,2]
[361755650,1747762233414,-1000.0,0.00016438,2]
[361755651,1747762233425,-450.0,0.00016438,2]
[361755652,1747762233437,-401.12162432,0.00016438,2]
[361755653,1747762233449,-450.0,0.00016438,2]
[361755654,1747762233460,-450.0,0.00016438,2]
[361755655,1747762233471,-450.0,0.00016438,2]
[361755656,1747762233482,-450.0,0.00016438,2]
[361755657,1747762233493,-450.0,0.00016438,2]
[361755658,1747762233504,-450.0,0.00016438,2]
[361755659,1747762233515,-211.15073617,0.00016438,2]
[361755660,1747762233526,-450.0,0.00016438,2]
[361755661,1747762233536,-450.0,0.00016438,2]
[361755662,1747762233547,-450.0,0.00016438,2]
[361755663,1747762233557,-450.0,0.00016438,2]
[361755664,1747762233567,-450.0,0.00016438,2]
[361755665,1747762233578,-450.0,0.00016438,2]
[361755666,1747762233589,-450.0,0.00016438,2]
[361755667,1747762233602,-450.0,0.00016438,2]
[361755668,1747762233613,-450.0,0.00016438,2]
[361755669,1747762233623,-450.0,0.00016438,2]
[361755670,1747762233634,-450.0,0.00016438,2]
[361755671,1747762233645,-450.0,0.00016438,2]
[361755672,1747762233656,-450.0,0.00016438,2]
[361755673,1747762233667,-450.0,0.00016438,2]
[361755674,1747762233679,-450.0,0.00016438,2]
[361755675,1747762233690,-450.0,0.00016438,2]
[361755676,1747762233701,-450.0,0.00016438,2]
[361755677,1747762233712,-450.0,0.00016438,2]
[361755678,1747762233723,-450.0,0.00016438,2]
[361755679,1747762233735,-450.0,0.00016438,2]
[361755680,1747762233745,-450.0,0.00016438,2]
[361755681,1747762233756,-450.0,0.00016438,2]
[361755682,1747762233767,-450.0,0.00016438,2]
[361755683,1747762233778,-431.28407692,0.00016438,2]
[361755684,1747762233789,-450.0,0.00016438,2]
[361755685,1747762233804,-450.0,0.00016438,2]
[361755686,1747762233815,-310.15132112,0.00016438,2]
[361755687,1747762233828,-450.0,0.00016438,2]
[361755688,1747762233839,-450.0,0.00016438,2]
[361755689,1747762233850,-400.0,0.00016438,2]
[361755690,1747762233861,-450.0,0.00016438,2]
[361755691,1747762233873,-247.00144133,0.00016438,2]
[361755692,1747762233885,-168.62728775,0.00016438,2]
[361755693,1747762233895,-450.0,0.00016438,2]
[361755694,1747762233906,-450.0,0.00016438,2]
[361755695,1747762233917,-450.0,0.00016438,2]
[361755696,1747762233928,-450.0,0.00016438,2]
[361755697,1747762233939,-450.0,0.00016438,2]
[361755698,1747762233950,-450.0,0.00016438,2]
[361755699,1747762233962,-450.0,0.00016438,2]
[361755700,1747762233974,-450.0,0.00016438,2]
[361755701,1747762233985,-450.0,0.00016438,2]
[361755702,1747762233996,-450.0,0.00016438,2]
[361755703,1747762234006,-450.0,0.00016438,2]
[361755704,1747762234017,-450.0,0.00016438,2]
[361755705,1747762234028,-458.83961208,0.00016438,2]
[361755706,1747762234040,-450.0,0.00016438,2]
[361755707,1747762234051,-450.0,0.00016438,2]
[361755708,1747762234061,-400.0,0.00016438,2]
[361755709,1747762234072,-450.0,0.00016438,2]
[361755710,1747762234083,-450.0,0.00016438,2]
[361755711,1747762234094,-450.0,0.00016438,2]
[361755712,1747762234106,-451.04390049,0.00016438,2]
[361755713,1747762234117,-450.0,0.00016438,2]
[361755714,1747762234128,-450.0,0.00016438,2]
[361755715,1747762234140,-450.0,0.00016438,2]
[361755716,1747762234150,-450.0,0.00016438,2]
[361755717,1747762234161,-450.0,0.00016438,2]
[361755718,1747762234172,-450.0,0.00016438,2]
[361755719,1747762234183,-430.0,0.00016438,2]
[361755720,1747762234194,-450.0,0.00016438,2]
[361755721,1747762234204,-450.0,0.00016438,2]
[361755722,1747762234215,-450.0,0.00016438,2]
[361755723,1747762234226,-450.0,0.00016438,2]
[361755724,1747762234237,-450.0,0.00016438,2]
[361755725,1747762234248,-450.0,0.00016438,2]
[361755726,1747762234471,-400.0,0.00016438,2]
[361755727,1747762234485,-450.0,0.00016438,2]
[361755728,1747762234495,-450.0,0.00016438,2]
[361755729,1747762234505,-450.0,0.00016438,2]
[361755730,1747762234515,-450.0,0.00016438,2]
[361755731,1747762234524,-450.0,0.00016438,2]
[361755732,1747762234534,-450.0,0.00016438,2]
[361755733,1747762234543,-495.96295737,0.00016438,2]
[361755734,1747762234553,-450.0,0.00016438,2]
[361755735,1747762234562,-450.0,0.00016438,2]
[361755736,1747762234571,-450.0,0.00016438,2]
[361755737,1747762234580,-401.48439289,0.00016438,2]
[361755738,1747762234590,-404.74802783,0.00016438,2]
[361755739,1747762234600,-450.0,0.00016438,2]
[361755740,1747762234609,-450.0,0.00016438,2]
[361755741,1747762234619,-401.06458782,0.00016438,2]
[361755742,1747762234628,-450.0,0.00016438,2]
[361755743,1747762234638,-450.0,0.00016438,2]
[361755744,1747762234648,-450.0,0.00016438,2]
[361755745,1747762234659,-450.0,0.00016438,2]
[361755746,1747762234668,-450.0,0.00016438,2]
[361755747,1747762234678,-358.76731582,0.00016438,2]
[361755748,1747762234688,-450.0,0.00016438,2]
[361755749,1747762234698,-450.0,0.00016438,2]
[361755750,1747762234707,-450.0,0.00016438,2]
[361755751,1747762234717,-206.42513144,0.00016438,2]
[361755752,1747762234726,-450.0,0.00016438,2]
[361755753,1747762234736,-450.0,0.00016438,2]
[361755754,1747762234746,-450.0,0.00016438,2]
[361755755,1747762234756,-450.0,0.00016438,2]
[361755756,1747762234766,-400.0,0.00016438,2]
[361755757,1747762234776,-400.0,0.00016438,2]
[361755758,1747762234787,-450.0,0.00016438,2]
[361755759,1747762234800,-450.0,0.00016438,2]
[361755760,1747762234810,-406.20487366,0.00016438,2]
[361755761,1747762234820,-450.0,0.00016438,2]
[361755762,1747762234829,-450.0,0.00016438,2]
[361755763,1747762234840,-450.0,0.00016438,2]
[361755764,1747762234851,-450.0,0.00016438,2]
[361755765,1747762234861,-450.30758677,0.00016438,2]
[361755766,1747762234871,-450.0,0.00016438,2]
[361755767,1747762234880,-450.0,0.00016438,2]
[361755768,1747762234890,-450.0,0.00016438,2]
[361755769,1747762234899,-450.0,0.00016438,2]
[361755770,1747762234910,-450.0,0.00016438,2]